[Event "GER-chW Blitz 2019"]
[Site "Magdeburg"]
[Date "2019.05.25"]
[Round "3.2"]
[White "Siegl, Melina"]
[Black "Michna, Marta"]
[Result "0-1"]
[ECO "C00"]
[WhiteElo "2029"]
[BlackElo "2355"]
[Annotator "NA"]
[PlyCount "74"]
[EventDate "2019.05.25"]
[EventType "tourn"]
[EventCountry "GER"]
[SourceTitle "playchess.com"]
[Source "ChessBase"]
[SourceQuality "1"]
[TimeControl "180+2"]

1. e4 {[%emt 0:00:00]} e6 {[%emt 0:00:00]} 2. d3 {[%emt 0:00:02]} c5 {[%emt 0:00:00]} 3. Nd2 {[%emt 0:00:02]} Nc6 {[%emt 0:00:00]} 4. Ngf3 d6 5. g3 {[%emt 0:00:02]} Nge7 {[%emt 0:00:02]} 6. Bg2 {[%emt 0:00:01]} g6 {[%emt 0:00:00]} 7. O-O Bg7 {[%emt 0:00:01]} 8. Re1 {[%emt 0:00:02]} O-O {[%emt 0:00:01]} 9. c3 {[%emt 0:00:01]} a5 {[%emt 0:00:02]} 10. Nf1 {[%emt 0:00:05]} b5 {[%emt 0:00:04]} 11. Be3 {[%emt 0:00:07]} b4 {[%emt 0:00:12]} 12. Qd2 {[%emt 0:00:02]} Ba6 {[%emt 0:00:17]} 13. c4 {[%emt 0:00:17]} Re8 {[%emt 0:00:17]} 14. Bh6 {[%emt 0:00:12]} Ne5 {[%emt 0:00:14]} 15. Bxg7 {[%emt 0:00:28]} Kxg7 {[%emt 0:00:01]} 16. Nxe5 {[%emt 0:00:19]} dxe5 {[%emt 0:00:01]} 17. f4 {[%emt 0:00:02]} Nc6 {[%emt 0:00:12]} 18. Ne3 {[%emt 0:00:20]} Qd4 {[%emt 0:00:23]} 19. Rad1 {[%emt 0:00:31]} exf4 {[%emt 0:00:08]} 20. gxf4 {[%emt 0:00:01]} f5 {[%emt 0:00:01]} 21. exf5 {[%emt 0:00:10]} Ne7 {[%emt 0:00:13]} 22. fxe6 {[%emt 0:00:06]} Nf5 {[%emt 0:00:11]} 23. Kh1 {[%emt 0:00:05]} Nh4 {[%emt 0:00:02]} 24. Bd5 {[%emt 0:00:08]} Rad8 {[%emt 0:00:05]} 25. Qf2 {[%emt 0:00:12]} Qf6 {[%emt 0:00:31]} 26. Ng4 {[%emt 0:00:09]} Qe7 {[%emt 0:00:00]} 27. Qe3 {[%emt 0:00:11]} Qc7 {[%emt 0:00:20]} 28. Qh3 {[%emt 0:00:05]} Nf5 {[%emt 0:00:10]} 29. Ne5 Rxd5 {[%emt 0:00:02]} 30. cxd5 {[%emt 0:00:05]} Bb7 {[%emt 0:00:01]} 31. Qg2 {[%emt 0:00:04]} Qd6 {[%emt 0:00:01]} 32. Re4 {[%emt 0:00:10]} Bxd5 {[%emt 0:00:01]} 33. Nc4 {[%emt 0:00:03]} Qc6 {[%emt 0:00:01]} 34. Nd2 {[%emt 0:00:02]} Rxe6 {[%emt 0:00:01]} 35. Qg5 {[%emt 0:00:03]} h6 {[%emt 0:00:02]} 36. Qd8 {[%emt 0:00:02]} Kh7 {[%emt 0:00:03]} 37. Rde1 {[%emt 0:00:02]} Ng7 {[%emt 0:00:07]} 0-1

[Event "GER-chW Blitz 2019"]
[Site "Magdeburg"]
[Date "2019.05.25"]
[Round "3.3"]
[White "Hofmann, Karina"]
[Black "Osmanodja, Filiz"]
[Result "0-1"]
[ECO "A03"]
[WhiteElo "1700"]
[BlackElo "2260"]
[Annotator "NA"]
[PlyCount "134"]
[EventDate "2019.05.25"]
[EventType "tourn"]
[EventCountry "GER"]
[SourceTitle "playchess.com"]
[Source "ChessBase"]
[SourceQuality "1"]
[TimeControl "180+2"]

1. f4 {[%emt 0:00:00]} d5 {[%emt 0:00:00]} 2. Nf3 {[%emt 0:00:01]} c5 {[%emt 0:00:00]} 3. e3 {[%emt 0:00:02]} Nc6 4. Bb5 g6 {[%emt 0:00:03]} 5. Bxc6+ bxc6 6. b3 {[%emt 0:00:08]} Bg7 {[%emt 0:00:01]} 7. Ne5 {[%emt 0:00:02]} Qc7 {[%emt 0:00:06]} 8. Bb2 {[%emt 0:00:06]} Nf6 {[%emt 0:00:05]} 9. d3 {[%emt 0:00:05]} O-O {[%emt 0:00:02]} 10. Nd2 {[%emt 0:00:01]} Ng4 {[%emt 0:00:13]} 11. Nxg4 {[%emt 0:00:50]} Bxb2 {[%emt 0:00:02]} 12. Rb1 {[%emt 0:00:01]} Bc3 {[%emt 0:00:03]} 13. h3 {[%emt 0:00:32]} Qa5 {[%emt 0:00:07]} 14. a4 {[%emt 0:00:03]} c4 {[%emt 0:00:18]} 15. Nh2 {[%emt 0:00:06]} cxd3 {[%emt 0:00:04]} 16. cxd3 {[%emt 0:00:02]} Ba6 {[%emt 0:00:03]} 17. Qc2 {[%emt 0:00:06]} d4 {[%emt 0:00:19]} 18. e4 {[%emt 0:00:04]} Qh5 {[%emt 0:00:11]} 19. Nhf3 {[%emt 0:00:05]} Qh6 {[%emt 0:00:14]} 20. g3 {[%emt 0:00:03]} e5 {[%emt 0:00:03]} 21. Kf2 {[%emt 0:00:05]} exf4 {[%emt 0:00:03]} 22. gxf4 {[%emt 0:00:04]} Qxf4 {[%emt 0:00:02]} 23. Nc4 {[%emt 0:00:09]} Bxc4 {[%emt 0:00:13]} 24. bxc4 {[%emt 0:00:03]} f5 {[%emt 0:00:05]} 25. e5 {[%emt 0:00:15]} Rab8 {[%emt 0:00:10]} 26. Rhf1 {[%emt 0:00:04]} Rfe8 {[%emt 0:00:29]} 27. Kg2 {[%emt 0:00:04]} Qe3 {[%emt 0:00:04]} 28. Rf2 {[%emt 0:00:05]} c5 {[%emt 0:00:24]} 29. Rb5 {[%emt 0:00:04]} Rxb5 {[%emt 0:00:02]} 30. axb5 {[%emt 0:00:01]} g5 {[%emt 0:00:14]} 31. Qe2 {[%emt 0:00:05]} Qxe2 32. Rxe2 {[%emt 0:00:02]} g4 {[%emt 0:00:10]} 33. hxg4 {[%emt 0:00:02]} fxg4 {[%emt 0:00:00]} 34. Ng5 {[%emt 0:00:04]} h6 {[%emt 0:00:05]} 35. Ne4 {[%emt 0:00:05]} Bb4 {[%emt 0:00:01]} 36. Nf6+ {[%emt 0:00:03]} Kf7 {[%emt 0:00:00]} 37. Nxe8 {[%emt 0:00:01]} Kxe8 {[%emt 0:00:01]} 38. e6 {[%emt 0:00:00]} Ke7 {[%emt 0:00:04]} 39. Kg3 {[%emt 0:00:01]} h5 {[%emt 0:00:03]} 40. Kh4 {[%emt 0:00:02]} Ba5 {[%emt 0:00:04]} 41. Kxh5 {[%emt 0:00:03]} g3 {[%emt 0:00:01]} 42. Kg4 {[%emt 0:00:01]} Bc7 {[%emt 0:00:04]} 43. Kf5 {[%emt 0:00:02]} Bd6 {[%emt 0:00:02]} 44. Ra2 {[%emt 0:00:03]} Bb8 {[%emt 0:00:01]} 45. Rg2 {[%emt 0:00:05]} Bc7 {[%emt 0:00:01]} 46. Re2 {[%emt 0:00:09]} Bd6 {[%emt 0:00:02]} 47. Ra2 {[%emt 0:00:05]} Bb8 {[%emt 0:00:00]} 48. Kg4 {[%emt 0:00:01]} Kxe6 {[%emt 0:00:03]} 49. Ra6+ {[%emt 0:00:03]} Ke7 {[%emt 0:00:04]} 50. Kf3 {[%emt 0:00:02]} Kd7 {[%emt 0:00:02]} 51. Rc6 {[%emt 0:00:01]} Bd6 {[%emt 0:00:01]} 52. b6 Kxc6 {[%emt 0:00:02]} 53. bxa7 {[%emt 0:00:03]} Kb7 {[%emt 0:00:01]} 54. Ke4 {[%emt 0:00:02]} g2 {[%emt 0:00:04]} 55. Kd5 {[%emt 0:00:01]} g1=Q {[%emt 0:00:05]} 56. Kxd6 {[%emt 0:00:01]} Kxa7 {[%emt 0:00:05]} 57. Kxc5 {[%emt 0:00:01]} Kb7 {[%emt 0:00:00]} 58. Kd5 {[%emt 0:00:01]} Kc7 {[%emt 0:00:01]} 59. c5 {[%emt 0:00:01]} Qg5+ {[%emt 0:00:02]} 60. Kc4 {[%emt 0:00:00]} Kc6 {[%emt 0:00:01]} 61. Kxd4 {[%emt 0:00:02]} Qxc5+ 62. Ke4 {[%emt 0:00:01]} Qd5+ {[%emt 0:00:02]} 63. Ke3 {[%emt 0:00:01]} Kc5 {[%emt 0:00:00]} 64. Kd2 {[%emt 0:00:01]} Kd4 {[%emt 0:00:02]} 65. Kc2 {[%emt 0:00:00]} Qa2+ {[%emt 0:00:01]} 66. Kd1 {[%emt 0:00:03]} Kxd3 {[%emt 0:00:01]} 67. Ke1 {[%emt 0:00:01]} Qe2# 0-1

[Event "GER-chW Blitz 2019"]
[Site "Magdeburg"]
[Date "2019.05.25"]
[Round "3.4"]
[White "Birkholz, Olga"]
[Black "Sieber, Fiona"]
[Result "0-1"]
[ECO "B20"]
[WhiteElo "2031"]
[BlackElo "2250"]
[Annotator "NA"]
[PlyCount "114"]
[EventDate "2019.05.25"]
[EventType "tourn"]
[EventCountry "GER"]
[SourceTitle "playchess.com"]
[Source "ChessBase"]
[SourceQuality "1"]
[TimeControl "180+2"]

1. e4 {[%emt 0:00:00]} c5 {[%emt 0:00:00]} 2. b3 {[%emt 0:00:02]} d6 {[%emt 0:00:02]} 3. Bb2 {[%emt 0:00:02]} Nf6 {[%emt 0:00:02]} 4. d3 {[%emt 0:00:02]} e5 {[%emt 0:00:02]} 5. Ne2 {[%emt 0:00:02]} Be7 {[%emt 0:00:02]} 6. f4 {[%emt 0:00:02]} Nc6 {[%emt 0:00:02]} 7. Nd2 {[%emt 0:00:02]} Ng4 {[%emt 0:00:02]} 8. Nc4 {[%emt 0:00:04]} b5 {[%emt 0:00:07]} 9. h3 {[%emt 0:00:01]} bxc4 {[%emt 0:00:06]} 10. hxg4 {[%emt 0:00:04]} cxb3 {[%emt 0:00:05]} 11. f5 {[%emt 0:00:14]} bxc2 12. Qxc2 {[%emt 0:00:01]} Nb4 {[%emt 0:00:32]} 13. Qd2 {[%emt 0:00:06]} Bg5 {[%emt 0:00:06]} 14. Qc3 {[%emt 0:00:06]} Ba6 {[%emt 0:00:11]} 15. Nc1 {[%emt 0:00:03]} Bh4+ {[%emt 0:00:13]} 16. Kd1 {[%emt 0:00:20]} Bf2 {[%emt 0:00:15]} 17. Qd2 {[%emt 0:00:07]} Bg3 {[%emt 0:00:11]} 18. a3 {[%emt 0:00:13]} Bf4 {[%emt 0:00:07]} 19. Qc3 {[%emt 0:00:08]} Nc6 {[%emt 0:00:04]} 20. Ne2 {[%emt 0:00:14]} Qg5 {[%emt 0:00:01]} 21. Rh5 {[%emt 0:00:12]} Qxg4 {[%emt 0:00:06]} 22. Rh3 {[%emt 0:00:11]} O-O {[%emt 0:00:07]} 23. Rf3 {[%emt 0:00:02]} Nd4 {[%emt 0:00:07]} 24. Nxd4 {[%emt 0:00:31]} cxd4 {[%emt 0:00:05]} 25. Qe1 {[%emt 0:00:04]} Rab8 {[%emt 0:00:04]} 26. Qe2 {[%emt 0:00:09]} Bb5 {[%emt 0:00:12]} 27. a4 {[%emt 0:00:03]} Ba6 {[%emt 0:00:06]} 28. Bc1 {[%emt 0:00:08]} Bxc1 29. Rxc1 {[%emt 0:00:01]} Rb3 {[%emt 0:00:10]} 30. Qc2 {[%emt 0:00:08]} Rc3 {[%emt 0:00:06]} 31. Qd2 {[%emt 0:00:04]} Rfc8 {[%emt 0:00:02]} 32. Rxc3 {[%emt 0:00:02]} dxc3 {[%emt 0:00:03]} 33. Qc2 {[%emt 0:00:01]} h6 {[%emt 0:00:08]} 34. Ke1 {[%emt 0:00:04]} Bb7 {[%emt 0:00:04]} 35. Rf2 {[%emt 0:00:10]} d5 {[%emt 0:00:01]} 36. Be2 {[%emt 0:00:02]} Qg5 {[%emt 0:00:03]} 37. Bf3 {[%emt 0:00:03]} Qe3+ {[%emt 0:00:06]} 38. Qe2 {[%emt 0:00:06]} Qc1+ {[%emt 0:00:03]} 39. Qd1 {[%emt 0:00:00]} Qa3 {[%emt 0:00:05]} 40. Rc2 {[%emt 0:00:14]} Qxa4 {[%emt 0:00:04]} 41. Qe2 {[%emt 0:00:01]} d4 {[%emt 0:00:02]} 42. Kf2 {[%emt 0:00:03]} Bc6 {[%emt 0:00:02]} 43. Ra2 {[%emt 0:00:04]} Qb3 {[%emt 0:00:03]} 44. Rxa7 {[%emt 0:00:02]} c2 {[%emt 0:00:02]} 45. Ra1 {[%emt 0:00:02]} Ba4 {[%emt 0:00:02]} 46. Rc1 {[%emt 0:00:01]} Qb2 {[%emt 0:00:01]} 47. Qd2 {[%emt 0:00:01]} Qc3 {[%emt 0:00:02]} 48. Ke2 {[%emt 0:00:02]} Bb5 {[%emt 0:00:03]} 49. Qxc3 Rxc3 {[%emt 0:00:02]} 50. Kf2 {[%emt 0:00:12]} Bxd3 {[%emt 0:00:01]} 51. g4 {[%emt 0:00:02]} Kf8 {[%emt 0:00:02]} 52. Be2 {[%emt 0:00:02]} Bxe2 {[%emt 0:00:02]} 53. Kxe2 {[%emt 0:00:01]} Ke7 {[%emt 0:00:02]} 54. Kd2 {[%emt 0:00:02]} Kf6 {[%emt 0:00:01]} 55. Rxc2 {[%emt 0:00:01]} Rxc2+ {[%emt 0:00:01]} 56. Kxc2 {[%emt 0:00:01]} Kg5 {[%emt 0:00:01]} 57. Kd3 {[%emt 0:00:01]} Kxg4 {[%emt 0:00:01] Kxd4} 0-1

[Event "GER-chW Blitz 2019"]
[Site "Magdeburg"]
[Date "2019.05.25"]
[Round "3.5"]
[White "Rath, Alina"]
[Black "Daemering, Katrin"]
[Result "1/2-1/2"]
[ECO "A10"]
[WhiteElo "2042"]
[BlackElo "2003"]
[Annotator "NA"]
[PlyCount "77"]
[EventDate "2019.05.25"]
[EventType "tourn"]
[EventCountry "GER"]
[SourceTitle "playchess.com"]
[Source "ChessBase"]
[SourceQuality "1"]
[TimeControl "180+2"]

1. c4 {[%emt 0:00:00]} d6 {[%emt 0:00:00]} 2. Nc3 {[%emt 0:00:01]} g6 {[%emt 0:00:00]} 3. g3 {[%emt 0:00:02]} Bg7 {[%emt 0:00:00]} 4. Bg2 {[%emt 0:00:01]} Nf6 {[%emt 0:00:02]} 5. e4 {[%emt 0:00:01]} O-O {[%emt 0:00:02]} 6. Nge2 {[%emt 0:00:01]} c5 {[%emt 0:00:02]} 7. O-O {[%emt 0:00:02]} Nc6 {[%emt 0:00:01]} 8. d3 {[%emt 0:00:01]} Nd4 {[%emt 0:00:03]} 9. h3 {[%emt 0:00:01]} a6 {[%emt 0:00:02]} 10. Be3 {[%emt 0:00:03]} Ne8 {[%emt 0:00:05]} 11. f4 {[%emt 0:00:03]} f5 {[%emt 0:00:06]} 12. Qd2 {[%emt 0:00:11]} e6 {[%emt 0:00:09]} 13. Kh2 {[%emt 0:00:01]} Rb8 {[%emt 0:00:03]} 14. Rae1 {[%emt 0:00:05]} b5 {[%emt 0:00:08]} 15. b3 {[%emt 0:00:02]} Bb7 {[%emt 0:00:10]} 16. exf5 {[%emt 0:00:20]} Nxf5 {[%emt 0:00:07]} 17. Bxb7 {[%emt 0:00:10]} Rxb7 {[%emt 0:00:04]} 18. Ne4 {[%emt 0:00:17]} h6 {[%emt 0:00:12]} 19. Bf2 {[%emt 0:00:13]} Kh7 {[%emt 0:00:15]} 20. d4 {[%emt 0:00:41]} bxc4 {[%emt 0:00:14]} 21. bxc4 {[%emt 0:00:01]} cxd4 {[%emt 0:00:13]} 22. Nxd4 {[%emt 0:00:04]} Nxd4 {[%emt 0:00:08]} 23. Bxd4 {[%emt 0:00:02]} e5 {[%emt 0:00:17]} 24. Be3 {[%emt 0:00:31]} Rbf7 {[%emt 0:00:11]} 25. Rf2 {[%emt 0:00:22]} Qd7 {[%emt 0:00:14]} 26. Ref1 {[%emt 0:00:02]} Qc6 {[%emt 0:00:06]} 27. Qd3 {[%emt 0:00:08]} exf4 {[%emt 0:00:13]} 28. Rxf4 {[%emt 0:00:07]} Rxf4 {[%emt 0:00:01]} 29. Rxf4 {[%emt 0:00:01]} Rxf4 {[%emt 0:00:17]} 30. Bxf4 {[%emt 0:00:01]} Qa4 {[%emt 0:00:08]} 31. Nxd6 {[%emt 0:00:22]} Qxa2+ {[%emt 0:00:04]} 32. Kh1 {[%emt 0:00:00]} Qa1+ {[%emt 0:00:07]} 33. Kh2 {[%emt 0:00:01]} Qb2+ {[%emt 0:00:02]} 34. Kh1 {[%emt 0:00:01]} Nxd6 {[%emt 0:00:07]} 35. Bxd6 {[%emt 0:00:02]} Qc1+ {[%emt 0:00:01]} 36. Kg2 {[%emt 0:00:01]} Qb2+ {[%emt 0:00:07]} 37. Kh1 {[%emt 0:00:01]} a5 {[%emt 0:00:01]} 38. h4 {[%emt 0:00:01]} a4 {[%emt 0:00:03]} 39. Qa3 {[%emt 0:00:04]} 1/2-1/2

[Event "GER-chW Blitz 2019"]
[Site "Magdeburg"]
[Date "2019.05.25"]
[Round "3.6"]
[White "Silz, Elisa"]
[Black "Kreismann, Franziska"]
[Result "1-0"]
[ECO "E91"]
[WhiteElo "1977"]
[BlackElo "1589"]
[Annotator "NA"]
[PlyCount "59"]
[EventDate "2019.05.25"]
[EventType "tourn"]
[EventCountry "GER"]
[SourceTitle "playchess.com"]
[Source "ChessBase"]
[SourceQuality "1"]
[TimeControl "180+2"]

1. d4 {[%emt 0:00:00]} g6 {[%emt 0:00:00]} 2. c4 {[%emt 0:00:00]} Bg7 {[%emt 0:00:01]} 3. Nc3 {[%emt 0:00:00]} Nf6 {[%emt 0:00:02]} 4. e4 {[%emt 0:00:01]} d6 {[%emt 0:00:01]} 5. Nf3 {[%emt 0:00:01]} O-O 6. Be2 c6 {[%emt 0:00:04]} 7. O-O {[%emt 0:00:02]} e6 {[%emt 0:00:02]} 8. Qc2 {[%emt 0:00:01]} d5 {[%emt 0:00:02]} 9. e5 {[%emt 0:00:04]} Nfd7 {[%emt 0:00:02]} 10. cxd5 {[%emt 0:00:02]} cxd5 {[%emt 0:00:02]} 11. Bg5 {[%emt 0:00:05]} f6 {[%emt 0:00:08]} 12. exf6 {[%emt 0:00:02]} Bxf6 {[%emt 0:00:03]} 13. Bh6 {[%emt 0:00:02]} Bg7 {[%emt 0:00:03]} 14. Bxg7 {[%emt 0:00:03]} Kxg7 {[%emt 0:00:02]} 15. Rac1 {[%emt 0:00:05]} Nc6 {[%emt 0:00:06]} 16. a3 {[%emt 0:00:18]} a6 {[%emt 0:00:03]} 17. b4 {[%emt 0:00:04]} b5 {[%emt 0:00:03]} 18. Nxb5 {[%emt 0:00:07]} axb5 {[%emt 0:00:07]} 19. Qxc6 {[%emt 0:00:02]} Rxa3 {[%emt 0:00:16]} 20. Qc7 {[%emt 0:00:33]} Rf7 {[%emt 0:00:22]} 21. Ne5 {[%emt 0:00:10]} Qxc7 {[%emt 0:00:28]} 22. Rxc7 {[%emt 0:00:04]} Ra8 {[%emt 0:00:04]} 23. Nxf7 {[%emt 0:00:04]} Kxf7 {[%emt 0:00:02]} 24. Bxb5 {[%emt 0:00:02]} Rb8 {[%emt 0:00:04]} 25. Bxd7 {[%emt 0:00:03]} Bxd7 {[%emt 0:00:02]} 26. Rxd7+ {[%emt 0:00:01]} Ke8 {[%emt 0:00:01]} 27. Rxh7 {[%emt 0:00:02]} Rxb4 {[%emt 0:00:01]} 28. Rd1 {[%emt 0:00:04]} Kf8 {[%emt 0:00:03]} 29. g3 {[%emt 0:00:04]} Kg8 {[%emt 0:00:03]} 30. Ra7 {[%emt 0:00:02]} 1-0

[Event "GER-chW Blitz 2019"]
[Site "Magdeburg"]
[Date "2019.05.25"]
[Round "3.7"]
[White "Kotyk, Valeriya"]
[Black "Kunze, Kerstin"]
[Result "0-1"]
[ECO "D53"]
[WhiteElo "1739"]
[BlackElo "2066"]
[Annotator "NA"]
[PlyCount "78"]
[EventDate "2019.05.25"]
[EventType "tourn"]
[EventCountry "GER"]
[SourceTitle "playchess.com"]
[Source "ChessBase"]
[SourceQuality "1"]
[TimeControl "180+2"]

1. d4 {[%emt 0:00:00]} Nf6 {[%emt 0:00:00]} 2. Bg5 {[%emt 0:00:01]} e6 {[%emt 0:00:06]} 3. c4 {[%emt 0:00:01]} d5 {[%emt 0:00:01]} 4. Nc3 {[%emt 0:00:02]} Be7 {[%emt 0:00:01]} 5. cxd5 {[%emt 0:00:02]} exd5 {[%emt 0:00:03]} 6. e3 {[%emt 0:00:01]} O-O {[%emt 0:00:02]} 7. h3 {[%emt 0:00:01]} h6 {[%emt 0:00:03]} 8. Bh4 {[%emt 0:00:01]} c6 {[%emt 0:00:15]} 9. Bd3 {[%emt 0:00:06]} Be6 {[%emt 0:00:18]} 10. Qc2 {[%emt 0:00:06]} a5 {[%emt 0:00:07]} 11. Nge2 {[%emt 0:00:03]} Na6 {[%emt 0:00:00]} 12. a3 {[%emt 0:00:09]} Nc7 {[%emt 0:00:11]} 13. O-O {[%emt 0:00:08]} Nh5 {[%emt 0:00:04]} 14. Bxe7 {[%emt 0:00:02]} Qxe7 {[%emt 0:00:01]} 15. Bf5 {[%emt 0:00:31]} Ne8 {[%emt 0:00:33]} 16. g4 {[%emt 0:00:15]} Nhf6 {[%emt 0:00:03]} 17. Ng3 {[%emt 0:00:04]} Nd7 {[%emt 0:00:07]} 18. Kg2 {[%emt 0:00:04]} Nd6 {[%emt 0:00:02]} 19. Bd3 {[%emt 0:00:04]} g6 {[%emt 0:00:41]} 20. Rae1 {[%emt 0:00:08]} f5 {[%emt 0:00:03]} 21. f3 {[%emt 0:00:07]} Rf7 {[%emt 0:00:06]} 22. e4 {[%emt 0:00:05]} fxe4 {[%emt 0:00:03]} 23. fxe4 {[%emt 0:00:02]} Rxf1 {[%emt 0:00:01]} 24. Rxf1 {[%emt 0:00:00]} dxe4 {[%emt 0:00:03]} 25. Ncxe4 {[%emt 0:00:02]} Bd5 {[%emt 0:00:07]} 26. Kh2 {[%emt 0:00:13]} Re8 {[%emt 0:00:16]} 27. Nxd6 {[%emt 0:00:03]} Qxd6 {[%emt 0:00:01]} 28. Rf3 {[%emt 0:00:08]} Bxf3 {[%emt 0:00:02]} 29. Bc4+ {[%emt 0:00:16]} Kg7 {[%emt 0:00:01]} 30. Qc3 {[%emt 0:00:02]} Qf6 {[%emt 0:00:05]} 31. Qd2 {[%emt 0:00:08]} Nb6 {[%emt 0:00:02]} 32. Bd3 {[%emt 0:00:04]} Nd5 {[%emt 0:00:00]} 33. Qf2 {[%emt 0:00:06]} Qf4 {[%emt 0:00:04]} 34. Kg1 {[%emt 0:00:08]} Ne3 {[%emt 0:00:03]} 35. Ne2 {[%emt 0:00:16]} Qf6 {[%emt 0:00:06]} 36. b4 {[%emt 0:00:12]} axb4 {[%emt 0:00:01]} 37. axb4 {[%emt 0:00:01]} Bxe2 {[%emt 0:00:02]} 38. Qxe2 {[%emt 0:00:01]} Qxd4 {[%emt 0:00:00]} 39. Bb1 {[%emt 0:00:08]} Nd5+ {[%emt 0:00:07]} 0-1

[Event "GER-chW Blitz 2019"]
[Site "Magdeburg"]
[Date "2019.05.25"]
[Round "3.8"]
[White "Fuchs, Judith"]
[Black "Gheng, Simona"]
[Result "1-0"]
[ECO "D00"]
[WhiteElo "2218"]
[BlackElo "1991"]
[Annotator "NA"]
[PlyCount "33"]
[EventDate "2019.05.25"]
[EventType "tourn"]
[EventCountry "GER"]
[SourceTitle "playchess.com"]
[Source "ChessBase"]
[SourceQuality "1"]
[TimeControl "180+2"]

1. d4 {[%emt 0:00:00]} d5 {[%emt 0:00:00]} 2. Bf4 {[%emt 0:00:00]} e6 {[%emt 0:00:01]} 3. e3 {[%emt 0:00:01]} Nf6 {[%emt 0:00:01]} 4. Nf3 {[%emt 0:00:02]} Bd6 {[%emt 0:00:03]} 5. Bg3 {[%emt 0:00:01]} O-O {[%emt 0:00:06]} 6. Bd3 {[%emt 0:00:05]} h6 {[%emt 0:00:01]} 7. Nbd2 {[%emt 0:00:03]} b6 {[%emt 0:00:01]} 8. Qe2 {[%emt 0:00:01]} Bb7 {[%emt 0:00:00]} 9. c3 {[%emt 0:00:02]} c5 {[%emt 0:00:01]} 10. Rd1 {[%emt 0:00:01]} Nbd7 {[%emt 0:00:01]} 11. Bxd6 {[%emt 0:00:04]} Re8 {[%emt 0:00:07]} 12. Bg3 {[%emt 0:00:04]} e5 {[%emt 0:00:09]} 13. Nxe5 {[%emt 0:00:05]} Nxe5 {[%emt 0:00:02]} 14. Bxe5 {[%emt 0:00:02]} Qd7 {[%emt 0:00:13]} 15. Bxf6 {[%emt 0:00:14]} gxf6 {[%emt 0:00:01]} 16. O-O {[%emt 0:00:08]} Bc8 {[%emt 0:00:18]} 17. Bb5 {[%emt 0:00:15]} 1-0

[Event "GER-chW Blitz 2019"]
[Site "Magdeburg"]
[Date "2019.05.25"]
[Round "3.9"]
[White "Lubbe, Melanie"]
[Black "Kopylov, Luba"]
[Result "1-0"]
[ECO "B07"]
[WhiteElo "2278"]
[BlackElo "2078"]
[Annotator "NA"]
[PlyCount "63"]
[EventDate "2019.05.25"]
[EventType "tourn"]
[EventCountry "GER"]
[SourceTitle "playchess.com"]
[Source "ChessBase"]
[SourceQuality "1"]
[TimeControl "180+2"]

1. d4 {[%emt 0:00:00]} Nf6 {[%emt 0:00:00]} 2. Nc3 {[%emt 0:00:00]} g6 {[%emt 0:00:00]} 3. e4 {[%emt 0:00:00]} d6 {[%emt 0:00:01]} 4. Be3 {[%emt 0:00:03]} Bg7 {[%emt 0:00:01]} 5. f3 {[%emt 0:00:01]} O-O 6. Qd2 Nbd7 {[%emt 0:00:11]} 7. Nge2 {[%emt 0:00:02]} c5 {[%emt 0:00:02]} 8. g4 {[%emt 0:00:04]} cxd4 {[%emt 0:00:04]} 9. Nxd4 {[%emt 0:00:01]} Ne5 {[%emt 0:00:01]} 10. O-O-O {[%emt 0:00:09]} Qa5 {[%emt 0:00:12]} 11. Kb1 {[%emt 0:00:05]} Be6 {[%emt 0:00:17]} 12. Nd5 {[%emt 0:00:29]} Qd8 {[%emt 0:00:02]} 13. Nxe6 {[%emt 0:00:14]} fxe6 {[%emt 0:00:01]} 14. Nf4 {[%emt 0:00:04]} Nxf3 {[%emt 0:00:03]} 15. Qg2 {[%emt 0:00:10]} Ng5 {[%emt 0:00:30]} 16. Bc4 {[%emt 0:00:09]} Qc8 {[%emt 0:00:37]} 17. Bb3 {[%emt 0:00:09]} Kh8 {[%emt 0:00:01]} 18. h4 {[%emt 0:00:03]} Ngxe4 {[%emt 0:00:02]} 19. Nxe6 {[%emt 0:00:05]} Nc3+ {[%emt 0:00:38]} 20. bxc3 {[%emt 0:00:09]} Qxc3 {[%emt 0:00:01]} 21. Bd4 {[%emt 0:00:09]} Qc6 {[%emt 0:00:14]} 22. Qxc6 {[%emt 0:00:03]} bxc6 {[%emt 0:00:01]} 23. Nxg7 {[%emt 0:00:02]} e5 {[%emt 0:00:05]} 24. Ne6 {[%emt 0:00:05]} exd4 {[%emt 0:00:06]} 25. Nxf8 {[%emt 0:00:02]} Rxf8 {[%emt 0:00:03]} 26. Rxd4 {[%emt 0:00:02]} d5 {[%emt 0:00:02]} 27. c4 {[%emt 0:00:04]} c5 {[%emt 0:00:11]} 28. Rf4 {[%emt 0:00:08]} Kg7 {[%emt 0:00:13]} 29. Rhf1 {[%emt 0:00:01]} dxc4 {[%emt 0:00:06]} 30. Bxc4 {[%emt 0:00:02]} Rb8+ {[%emt 0:00:01]} 31. Kc2 {[%emt 0:00:03]} Rb6 {[%emt 0:00:11]} 32. g5 {[%emt 0:00:02]} 1-0

[Event "GER-chW Blitz 2019"]
[Site "Magdeburg"]
[Date "2019.05.25"]
[Round "3.10"]
[White "Ries, Jutta"]
[Black "Zimmer, Elke"]
[Result "1-0"]
[ECO "A03"]
[WhiteElo "2017"]
[BlackElo "1926"]
[Annotator "NA"]
[PlyCount "67"]
[EventDate "2019.05.25"]
[EventType "tourn"]
[EventCountry "GER"]
[SourceTitle "playchess.com"]
[Source "ChessBase"]
[SourceQuality "1"]
[TimeControl "180+2"]

1. f4 {[%emt 0:00:00]} d5 {[%emt 0:00:00]} 2. Nf3 {[%emt 0:00:00]} Nc6 {[%emt 0:00:00]} 3. b3 {[%emt 0:00:01]} Bf5 {[%emt 0:00:02]} 4. Bb2 {[%emt 0:00:01]} e6 {[%emt 0:00:02]} 5. e3 {[%emt 0:00:01]} Nf6 {[%emt 0:00:02]} 6. Bb5 {[%emt 0:00:02]} Bd6 {[%emt 0:00:07]} 7. O-O {[%emt 0:00:09]} O-O {[%emt 0:00:02]} 8. Bxc6 {[%emt 0:00:09]} bxc6 {[%emt 0:00:02]} 9. Nd4 {[%emt 0:00:14]} Bg4 {[%emt 0:00:13]} 10. Qe1 {[%emt 0:00:05]} c5 {[%emt 0:00:07]} 11. Nc6 {[%emt 0:00:06]} Qe8 {[%emt 0:00:13]} 12. Ne5 {[%emt 0:00:32]} Bf5 {[%emt 0:00:09]} 13. d3 {[%emt 0:00:01]} Nd7 {[%emt 0:00:07]} 14. Nd2 {[%emt 0:00:06]} f6 {[%emt 0:00:15]} 15. Nef3 {[%emt 0:00:02]} Bg6 {[%emt 0:00:02]} 16. Qg3 {[%emt 0:00:12]} e5 {[%emt 0:00:26]} 17. Nh4 {[%emt 0:00:12]} exf4 {[%emt 0:00:06]} 18. exf4 {[%emt 0:00:03]} Bf7 {[%emt 0:00:25]} 19. Rae1 {[%emt 0:00:04]} Qd8 {[%emt 0:00:03]} 20. Nf5 {[%emt 0:00:03]} Bg6 {[%emt 0:00:05]} 21. Nxd6 {[%emt 0:00:09]} cxd6 {[%emt 0:00:01]} 22. f5 {[%emt 0:00:01]} Bh5 {[%emt 0:00:09]} 23. Qxd6 {[%emt 0:00:03]} Re8 {[%emt 0:00:06]} 24. Qxd5+ {[%emt 0:00:04]} Bf7 {[%emt 0:00:10]} 25. Qf3 {[%emt 0:00:06]} Ne5 {[%emt 0:00:09]} 26. Qg3 {[%emt 0:00:06]} Qc8 {[%emt 0:00:06]} 27. Bxe5 {[%emt 0:00:07]} fxe5 {[%emt 0:00:01]} 28. Rxe5 {[%emt 0:00:02]} Qd7 {[%emt 0:00:04]} 29. f6 {[%emt 0:00:07]} Qd4+ {[%emt 0:00:03]} 30. Kh1 {[%emt 0:00:11]} g6 {[%emt 0:00:02]} 31. Re7 {[%emt 0:00:10]} Qc3 {[%emt 0:00:15]} 32. Ne4 {[%emt 0:00:04]} Qxc2 {[%emt 0:00:19]} 33. Nd6 {[%emt 0:00:02]} Rxe7 {[%emt 0:00:04]} 34. fxe7 {[%emt 0:00:02]} 1-0